fUSD/lending_fUSD_20260323
["ID","MTS","AMOUNT","RATE_DAILY","PERIOD"]
[408804948,1774277575412,-1342.0750084,0.000466,120]
[408804949,1774277575421,-5000000.0,0.000466,120]
[408804950,1774277575430,-5000000.0,0.000466,120]
[408804951,1774277575440,-5000000.0,0.000466,120]
[408804952,1774277575449,-4403971.91624407,0.000466,120]
[408804953,1774277577804,-377.00008373,0.000466,120]
[408804954,1774277577824,-127611.58560124,0.000466,120]
[408804955,1774277577847,-1230.62946903,0.000466,120]
[408804956,1774277577859,-699.27,0.000466,120]
[408804957,1774277577871,-395.38666381,0.000466,120]
[408804972,1774278631942,-492.21212702,0.000109,2]
[408804973,1774278631954,-1546.46476647,0.000109,2]
[408804974,1774278631965,-6066.7758186,0.000109,2]
[408804975,1774278631975,-1668.97568377,0.000109,2]
[408804976,1774278632001,-44.3724493,0.000109,2]
[408804977,1774278632010,-275.0,0.00010921,2]
[408804978,1774278632019,-439.97258687,0.00010921,2]
[408804979,1774278632062,-60.02741313,0.00010921,2]
[408804980,1774278632071,-300.0,0.00011587,2]
[408804981,1774278632081,-1200.0,0.00011587,2]
[408804982,1774278632090,-485.3203056,0.00011588,2]
[408804983,1774278632101,-272.84707884,0.00011588,2]
[408804984,1774278632112,-289.88510599,0.00011588,2]
[408804985,1774278632123,-1407.00725734,0.00011588,2]
[408804986,1774278632137,-44.94025223,0.00011588,2]
[408804987,1774278632146,-2500.0,0.00011588,2]
[408804988,1774278632155,-2500.0,0.00011588,2]
[408804989,1774278632165,-2500.0,0.00011588,2]
[408804990,1774278632174,-234.52959823,0.00012013,2]
[408804994,1774278638063,-2265.47040177,0.00012013,2]
[408804995,1774278638073,-166.66,0.00012247,2]
[408804996,1774278638082,-166.66,0.00012504,2]
[408804997,1774278638092,-1680.0,0.00012745,2]
[408804998,1774278638102,-166.66,0.00012762,2]
[408804999,1774278638111,-250.0,0.00013,2]
[408805000,1774278638121,-166.66,0.0001302,2]
[408805001,1774278638130,-2529.01477229,0.00013124,2]
[408805002,1774278638140,-2795.8724,0.00013189,2]
[408805003,1774278638150,-202.6,0.00013259,2]
[408805004,1774278638159,-166.66,0.00013278,2]
[408805005,1774278638168,-150.0,0.00013288,2]
[408805006,1774278638177,-2000.0,0.00013289,2]
[408805007,1774278638186,-8374.62,0.00013289,2]
[408805008,1774278638196,-611.17112057,0.00013373,2]
[408805009,1774278638205,-1918.703,0.00013466,2]
[408805010,1774278638214,-162.191,0.00013466,2]
[408805011,1774278638223,-166.66,0.00013536,2]
[408805012,1774278638232,-2500.0,0.00013672,2]
[408805013,1774278638242,-536.45731056,0.00013731,2]
[408805014,1774278638252,-1239.92084832,0.00013772,5]
[408805015,1774278638262,-1239.92084831,0.00013772,5]
[408805016,1774278638271,-1239.92084832,0.00013772,5]
[408805017,1774278638280,-500.0,0.00013773,2]
[408805018,1774278638289,-500.0,0.00013773,2]
[408805020,1774278638298,-569155.53493308,0.00013773,2]
[408805021,1774278638313,-500.0,0.00013773,2]
[408805022,1774278638328,-500.0,0.00013773,2]
[408805024,1774278640153,-354.905,0.00013773,2]
[408805025,1774278640164,-450.9,0.00013773,2]
[408805027,1774278640208,-342.26322073,0.00013773,2]
[408805028,1774278640581,-590.0917593,0.00013773,2]
[408805033,1774278643355,-681.58,0.00013773,2]
[408805036,1774278646470,-355.95306767,0.00013773,2]
[408805037,1774278646545,-63515.6996924,0.00013773,2]
[408805082,1774278864126,152.7,8.317e-05,2]
[408805083,1774278864320,152.7,8.871e-05,2]
[408805084,1774278864511,152.7,9.426e-05,2]
[408805096,1774279583911,6729.02263416,8e-05,2]
[408805101,1774279739465,2812.88736584,9.5e-05,3]
[408805102,1774279739489,10000.01,9.5e-05,3]
[408805103,1774279739513,10000.01,9.5e-05,3]
[408805104,1774279739538,4320.05,9.5e-05,3]
[408805124,1774279832124,-152.7,9.98e-05,2]
[408805125,1774279832133,-260.0,9.98e-05,2]
[408805126,1774279832143,-152.7,0.00010534,2]
[408805127,1774279832153,-126.95627604,0.00010977,2]
[408805128,1774279832164,-51.04372396,0.00010977,2]
[408805129,1774279832174,-246.00413511,0.00010977,2]
[408805130,1774279832186,-953.99586489,0.00010977,2]
[408805131,1774279832196,-150.0,0.00010977,2]
[408805132,1774279832208,-300.0,0.00010977,2]
[408805133,1774279832223,-96.36413511,0.00010978,2]
[408805134,1774279832234,-2138.19999999,0.00010978,2]
[408805135,1774279832247,-265.4358649,0.00010978,2]
[408805136,1774279832258,-698.55225313,0.00010978,2]
[408805137,1774279832269,-1200.0,0.00010978,2]
[408805138,1774279832292,-601.44774687,0.00010978,2]
[408805139,1774279832302,-494.11855094,0.00010978,2]
[408805142,1774279833558,-2005.88144906,0.00010978,2]
[408805143,1774279833568,-2500.0,0.00010978,2]
[408805144,1774279833577,-2500.0,0.00010978,2]
[408805145,1774279833587,-152.7,0.00011089,2]
[408805146,1774279833597,-707.73,0.00011507,2]
[408805147,1774279833606,-152.7,0.00011643,2]
[408805148,1774279833617,-255.0,0.0001202,2]
[408805149,1774279833627,-1680.0,0.00012075,2]
[408805150,1774279833636,-152.7,0.00012198,2]
[408805151,1774279834099,-250.0,0.00012446,2]
[408805152,1774279834110,-152.7,0.00012752,2]
[408805153,1774279834120,-150.0,0.00012889,2]
[408805154,1774279834130,-250.0,0.00013,2]
[408805155,1774279834139,-307.3998,0.00013088,2]
[408805156,1774279834148,-536.2634,0.00013089,2]
[408805157,1774279834158,-2500.0,0.00013089,2]
[408805158,1774279834167,-7754.22252883,0.00013089,2]
[408805159,1774279834214,-2555.62431623,0.00013089,2]
[408805160,1774279834229,-2015.80487419,0.00013089,2]
[408805161,1774279834240,-1046.42972454,0.00013089,2]
[408805162,1774279834262,-806.0,0.00013089,2]
[408805163,1774279834273,-729.0,0.00013089,2]
[408805164,1774279834285,-158894.12061122,0.00013089,2]
[408805165,1774279834300,-23440.39984499,0.00013089,2]
[408805166,1774279834310,-2326.85993342,0.00013107,2]
[408805167,1774279834319,-500.0,0.00013173,2]
[408805168,1774279834328,-166.05,0.00013174,2]
[408805169,1774279834338,-688.88,0.00013188,2]
[408805170,1774279834347,-175.4851677,0.00013188,2]
[408805171,1774279834357,-162.54499297,0.00013188,2]
[408805172,1774279834367,-500.0,0.00013188,2]
[408805173,1774279834376,-500.0,0.00013188,2]
[408805174,1774279834385,-500.0,0.00013188,2]
[408805175,1774279834395,-500.0,0.00013188,2]
[408805176,1774279834404,-500.0,0.00013188,2]
[408805177,1774279834413,-300.0,0.00013188,2]
[408805178,1774279834423,-500.0,0.00013188,2]
[408805179,1774279834432,-500.0,0.00013188,2]
[408805180,1774279834442,-500.0,0.00013188,2]
[408805181,1774279834451,-500.0,0.00013188,2]
[408805182,1774279834461,-613.68022007,0.00013188,2]
[408805183,1774279834470,-500.0,0.00013188,2]
[408805184,1774279834480,-500.0,0.00013188,2]
[408805185,1774279834489,-500.0,0.00013188,2]
[408805186,1774279834498,-500.0,0.00013188,2]
[408805187,1774279834507,-394.6000439,0.00013188,2]
[408805188,1774279834517,-500.0,0.00013188,2]
[408805189,1774279834526,-500.0,0.00013188,2]
[408805190,1774279834536,-500.0,0.00013188,2]
[408805191,1774279834545,-500.0,0.00013188,2]
[408805192,1774279834555,-447.0108863,0.00013188,2]
[408805193,1774279834564,-500.0,0.00013188,2]
[408805194,1774279834573,-500.0,0.00013188,2]
[408805195,1774279834582,-500.0,0.00013188,2]
[408805196,1774279834591,-500.0,0.00013188,2]
[408805197,1774279834600,-500.0,0.00013188,2]
[408805198,1774279834609,-500.0,0.00013188,2]
[408805199,1774279834620,-500.0,0.00013188,2]
[408805200,1774279834629,-500.0,0.00013188,2]
[408805201,1774279834639,-500.0,0.00013188,2]
[408805202,1774279834651,-500.0,0.00013188,2]
[408805203,1774279834660,-562.68100194,0.00013188,2]
[408805204,1774279834670,-500.0,0.00013188,2]
[408805205,1774279834679,-500.0,0.00013188,2]
[408805206,1774279834688,-500.0,0.00013188,2]
[408805207,1774279834697,-500.0,0.00013188,2]
[408805208,1774279834707,-500.0,0.00013188,2]
[408805209,1774279834717,-500.0,0.00013188,2]
[408805210,1774279834726,-500.0,0.00013188,2]
[408805211,1774279834735,-500.0,0.00013188,2]
[408805212,1774279834745,-500.0,0.00013188,2]
[408805213,1774279834755,-500.0,0.00013188,2]
[408805214,1774279834765,-500.0,0.00013188,2]
[408805215,1774279834774,-500.0,0.00013188,2]
[408805216,1774279834783,-500.0,0.00013188,2]
[408805217,1774279834793,-500.0,0.00013188,2]
[408805218,1774279834803,-500.0,0.00013188,2]
[408805219,1774279834813,-500.0,0.00013207,2]
[408805220,1774279834822,-892.49511571,0.00013213,2]
[408805221,1774279834832,-162.66,0.00013282,2]
[408805222,1774279834842,-2351.0,0.00013282,2]
[408805223,1774279834851,-152.7,0.00013307,2]
[408805224,1774279834861,-688.88,0.00013462,2]
[408805225,1774279834871,-200.0,0.00013699,2]
[408805226,1774279834880,-1029.364147,0.00013708,2]
[408805227,1774279834889,-688.88,0.00013736,2]
[408805228,1774279834899,-152.7,0.00013861,2]
[408805229,1774279834908,-165.17,0.00013931,2]
[408805230,1774279834918,-502.0,0.00014,2]
[408805231,1774279834928,-688.88,0.0001401,2]
[408805232,1774279834937,-166.05,0.00014261,2]
[408805233,1774279834946,-688.88,0.00014284,2]
[408805234,1774279834955,-152.7,0.00014415,2]
[408805235,1774279834964,-150.113,0.00014473,2]
[408805236,1774279834974,-688.91,0.00014558,2]
[408805237,1774279834984,-461.0,0.0001461,2]
[408805238,1774279834993,-369.0,0.00014647,2]
[408805239,1774279835002,-2000.0,0.0001495,2]
[408805240,1774279835011,-152.7,0.0001497,2]
[408805241,1774279835021,-300.0,0.00015,2]
[408805242,1774279835030,-178.78,0.00015068,2]
[408805243,1774279835039,-1029.364147,0.00015186,2]
[408805244,1774279835048,-789.9,0.00015205,2]
[408805245,1774279835058,-166.05,0.00015348,2]
[408805246,1774279835067,-979.16666667,0.00015381,2]
[408805247,1774279835077,-160.0,0.00015381,2]
[408805248,1774279835086,-152.7,0.00015524,2]
[408805249,1774279835096,-502.0,0.0001565,3]
[408805250,1774279835106,-163.0,0.0001568,2]
[408805251,1774279835115,-343.66267665,0.0001568,2]
[408805252,1774279835128,-2460.33732335,0.0001568,2]
[408805253,1774279835137,-1925.47,0.0001589,2]
[408805254,1774279835147,-150.22603664,0.000159,2]
[408805255,1774279835156,-173.77406604,0.000159,2]
[408805256,1774279835166,-150.0,0.000159,2]
[408805257,1774279835175,-150.0,0.000159,2]
[408805258,1774279835185,-188.10476319,0.000159,2]
[408805259,1774279835194,-482.81157954,0.00015972,2]
[408805260,1774279835205,-175.19623888,0.00015999,2]
[408805261,1774279835218,-500.0,0.00015999,2]
[408805262,1774279835228,-500.0,0.00015999,2]
[408805263,1774279835237,-160.67885954,0.00015999,2]
[408805264,1774279835250,-339.32114046,0.00015999,2]
[408805265,1774279835259,-500.0,0.00015999,2]
[408805266,1774279835268,-500.0,0.00015999,2]
[408805267,1774279835278,-500.0,0.00015999,2]
[408805268,1774279835288,-500.0,0.00015999,2]
[408805269,1774279835297,-500.0,0.00015999,2]
[408805270,1774279835306,-500.0,0.00015999,2]
[408805271,1774279835316,-500.0,0.00015999,2]
[408805272,1774279835324,-500.0,0.00015999,2]
[408805273,1774279835334,-500.0,0.00015999,2]
[408805274,1774279835343,-580.9285109,0.00015999,2]
[408805275,1774279835353,-622.63736721,0.00015999,2]
[408805276,1774279835362,-7022.92622605,0.00016,3]
[408805277,1774279838268,-354.63166514,0.000135,2]
[408805278,1774279838280,-71.42843486,0.000135,2]
[408805279,1774279838291,-689.69,0.0001366,2]
[408805280,1774279838300,-14664.1028935,0.00016,3]
[408805281,1774279838311,-2686.26121667,0.00016,3]
[408805282,1774279838321,-44430.30828333,0.00016,2]
[408805283,1774279838332,-34443.99712,0.00016,2]
[408805284,1774279838379,-1276.78651,0.00016,2]
[408805285,1774279838390,-523.61517466,0.00016,2]
[408805286,1774279838480,-1170.75638054,0.00016,2]
[408805294,1774279840495,-781.06101906,0.000159,2]
[408805296,1774279840506,-382.76916817,0.000159,2]
[408805298,1774279840516,-196.50136064,0.0001599,2]
[408805299,1774279840525,-95.39484842,0.00016,2]
[408805300,1774279840536,-4412.21414495,0.00016,2]
[408805301,1774279840548,-8656.4824,0.00016,2]
[408805302,1774279840942,-291.48779872,0.00016,2]
[408805303,1774279840969,-7721.94853633,0.00016,2]
[408805304,1774279841067,-35325.0601595,0.00016,2]
[408805305,1774279841078,-137904.94246208,0.00016,2]
[408805312,1774279845840,-4131.7238808,0.00016,2]
[408805313,1774279845859,-763.14325912,0.00016,2]
[408805314,1774279845877,-965.30819849,0.00016,2]
[408805315,1774279845979,-2509.07303865,0.00016,2]
[408805316,1774279845990,-18314.47348714,0.00016,2]
[408805317,1774279846001,-3776.94677029,0.00016,2]
[408805319,1774279846012,-1030.1308482,0.00016,2]
[408805320,1774279846023,-1772.92596407,0.00016,2]
[408805321,1774279846034,-800.47612132,0.00016,2]
[408805322,1774279846045,-55081.19274754,0.00016,2]
[408805323,1774279846056,-743.33980056,0.00016,2]
[408805324,1774279846067,-3484.25957776,0.00016,2]
[408805325,1774279846077,-7125.36641966,0.00016,2]
[408805326,1774279846088,-554.96384266,0.00016,2]
[408805327,1774279846134,-2343.68669856,0.00016,2]
[408805344,1774279846469,-1650.4475,0.00016,2]
[408805345,1774279846480,-6744.28269683,0.00016,2]
[408805346,1774279846492,-591.67995862,0.00016,2]
[408805347,1774279846514,-645.26985,0.00016,2]
[408805359,1774280053586,880.0,4e-05,120]
[408805360,1774280229117,165.46853951,0.0001,10]
[408805378,1774281031360,-200.0,0.000118,2]
[408805380,1774281031370,-289.0,0.000118,2]
[408805382,1774281031379,-219.11591158,0.000128,2]
[408805384,1774281031388,-196.50136064,0.00012977,2]
[408805386,1774281031398,-300.0,0.00012985,2]
[408805388,1774281031408,-1200.0,0.00012985,2]
[408805389,1774281031417,-150.0,0.00012986,2]
[408805391,1774281031428,-500.0,0.00012986,2]
[408805392,1774281031437,-500.0,0.00012986,2]
[408805393,1774281031447,-500.0,0.00012986,2]
[408805394,1774281031457,-441.67857629,0.00012986,2]
[408805396,1774281031468,-500.0,0.00012986,2]
[408805398,1774281031477,-278.81648307,0.00012986,2]
[408805400,1774281031486,-288.87587893,0.00012986,2]
[408805402,1774281031502,-211.12412107,0.00012986,2]
[408805404,1774281031511,-500.0,0.00012986,2]
[408805406,1774281031521,-500.0,0.00012986,2]
[408805408,1774281031532,-500.0,0.00012986,2]
[408805410,1774281031543,-88.87587893,0.00012986,2]
[408805412,1774281031555,-411.12412107,0.00012986,2]
[408805414,1774281031564,-269.06365948,0.00012986,2]
[408805416,1774281031574,-500.0,0.00012986,2]
[408805418,1774281031583,-48.5218999,0.00012986,2]
[408805419,1774281031593,-450.0,0.00012986,2]
[408805423,1774281031876,-4.18682971,0.00012986,2]
[408805424,1774281031886,-500.0,0.00012986,2]
[408805425,1774281031896,-500.0,0.00012986,2]
[408805426,1774281031905,-500.0,0.00012986,2]
[408805427,1774281031914,-500.0,0.00012986,2]
[408805428,1774281031923,-500.0,0.00012986,2]
[408805429,1774281031932,-500.0,0.00012986,2]
[408805430,1774281031941,-500.0,0.00012986,2]
[408805431,1774281031950,-500.0,0.00012986,2]
[408805432,1774281031960,-500.0,0.00012986,2]
[408805433,1774281031970,-314.29858352,0.00012986,2]
[408805434,1774281031979,-500.0,0.00012986,2]
[408805435,1774281031988,-153.23972663,0.00012986,2]
[408805436,1774281032391,-500.0,0.00012986,2]
[408805437,1774281032401,-500.0,0.00012986,2]
[408805438,1774281032411,-335.55845584,0.00012986,2]
[408805439,1774281032434,-164.44154416,0.00012986,2]
[408805440,1774281032443,-150.56055131,0.00012986,2]
[408805441,1774281032452,-500.0,0.00012986,2]
[408805442,1774281032462,-319.09459453,0.00012986,2]
[408805443,1774281032473,-180.90540547,0.00012986,2]
[408805444,1774281032482,-500.0,0.00012986,2]
[408805445,1774281032492,-500.0,0.00012986,2]
[408805446,1774281032502,-500.0,0.00012986,2]
[408805447,1774281032512,-500.0,0.00012986,2]
[408805448,1774281032520,-500.0,0.00012986,2]
[408805449,1774281032534,-500.0,0.00012986,2]
[408805450,1774281032543,-500.0,0.00012986,2]
[408805451,1774281032553,-500.0,0.00012986,2]
[408805452,1774281032563,-500.0,0.00012986,2]
[408805453,1774281032573,-500.0,0.00012986,2]
[408805454,1774281032583,-500.0,0.00012986,2]
[408805455,1774281032592,-500.0,0.00012986,2]
[408805456,1774281032602,-500.0,0.00012986,2]
[408805457,1774281032613,-500.0,0.00012986,2]
[408805458,1774281032622,-500.0,0.00012986,2]
[408805459,1774281032631,-500.0,0.00012986,2]
[408805460,1774281032641,-500.0,0.00012986,2]
[408805461,1774281032651,-500.0,0.00012986,2]
[408805462,1774281032661,-500.0,0.00012986,2]
[408805463,1774281032672,-500.0,0.00012986,2]
[408805464,1774281032681,-500.0,0.00012986,2]
[408805465,1774281032692,-500.0,0.00012986,2]
[408805466,1774281032701,-500.0,0.00012986,2]
[408805467,1774281032710,-300.0,0.00012986,2]
[408805468,1774281032720,-300.0,0.00012986,2]
[408805469,1774281032730,-500.0,0.00012986,2]
[408805470,1774281032739,-500.0,0.00012986,2]
[408805471,1774281032748,-500.0,0.00012986,2]
[408805472,1774281032758,-2500.0,0.00012987,2]
[408805473,1774281032768,-1236375.1071,0.00012987,2]
[408805474,1774281032777,-2500.0,0.00012987,2]
[408805475,1774281032786,-2500.0,0.00012987,2]
[408805476,1774281032796,-1000.0,0.00012988,2]
[408805477,1774281032805,-2500.0,0.00012988,2]
[408805478,1774281032814,-5885.63705508,0.00012989,2]
[408805479,1774281032823,-250.0,0.00013,2]
[408805480,1774281032833,-587.46593813,0.00013073,2]
[408805481,1774281032842,-500.0,0.00013073,2]
[408805482,1774281032851,-500.0,0.0001308,2]
[408805483,1774281032861,-500.0,0.0001308,2]
[408805484,1774281032871,-500.0,0.0001308,2]
[408805485,1774281032880,-500.0,0.0001308,2]
[408805486,1774281032891,-151.0,0.0001308,2]
[408805487,1774281032900,-151.0,0.0001308,2]
[408805488,1774281032910,-151.0,0.0001308,2]
[408805489,1774281032920,-151.0,0.0001308,2]
[408805490,1774281032929,-217.73,0.00013087,2]
[408805491,1774281032938,-350.1262,0.00013089,2]
[408805492,1774281032948,-14019.21,0.000133,2]
[408805493,1774281032957,-217.73,0.00013361,2]
[408805494,1774281032968,-3240.0,0.0001361,2]
[408805495,1774281032977,-217.74,0.00013635,2]
[408805496,1774281032987,-160.06,0.000137,2]
[408805497,1774281032996,-2000.0,0.00013966,2]
[408805498,1774281033006,-1019.72552117,0.00013979,2]
[408805499,1774281033015,-502.0,0.00014,2]
[408805500,1774281033025,-250.0,0.0001408,2]
[408805501,1774281033034,-500.0,0.0001408,2]
[408805502,1774281033044,-500.0,0.0001408,2]
[408805503,1774281033053,-500.0,0.0001408,2]
[408805504,1774281033062,-500.0,0.0001408,2]
[408805505,1774281033073,-500.0,0.0001408,2]
[408805506,1774281033082,-600.0,0.0001408,2]
[408805507,1774281033092,-600.0,0.0001408,2]
[408805508,1774281033101,-600.0,0.0001408,2]
[408805509,1774281033111,-179.0,0.0001409,2]
[408805510,1774281033121,-678.579202,0.00014141,2]
[408805511,1774281033130,-500.0,0.00014141,2]
[408805512,1774281033139,-5000.0,0.00014141,2]
[408805513,1774281033148,-5000.0,0.00014141,2]
[408805514,1774281033158,-5000.0,0.00014141,2]
[408805515,1774281033167,-5000.0,0.00014141,2]
[408805516,1774281033177,-5000.0,0.00014141,2]
[408805517,1774281033186,-5000.0,0.00014141,2]
[408805518,1774281033196,-5000.0,0.00014141,2]
[408805519,1774281033205,-5000.0,0.00014141,2]
[408805520,1774281033214,-500.0,0.00014141,2]
[408805521,1774281033224,-5000.0,0.00014141,2]
[408805522,1774281033233,-500.0,0.00014141,2]
[408805523,1774281033242,-5000.0,0.00014141,2]
[408805524,1774281033252,-500.0,0.00014141,2]
[408805525,1774281033261,-5000.0,0.00014141,2]
[408805526,1774281033270,-500.0,0.00014141,2]
[408805527,1774281033279,-174.61919141,0.00014141,2]
[408805528,1774281033289,-262.90206542,0.00014141,2]
[408805529,1774281033298,-500.0,0.00014141,2]
[408805530,1774281033307,-500.0,0.00014141,2]
[408805531,1774281033317,-500.0,0.00014141,2]
[408805532,1774281033327,-500.0,0.00014141,2]
[408805533,1774281033336,-505.13889905,0.00014141,2]
[408805534,1774281033346,-1822.20227742,0.00014186,2]
[408805535,1774281033355,-582.13695314,0.00014196,2]
[408805536,1774281033363,-801.53,0.00014223,2]
[408805537,1774281033373,-1592.36,0.00014223,2]
[408805538,1774281033382,-420.0,0.00014241,2]
[408805539,1774281033391,-1680.0,0.00014284,2]
[408805540,1774281033401,-300.0,0.00014285,2]
[408805541,1774281033410,-300.0,0.00014285,2]
[408805542,1774281033419,-300.0,0.00014285,2]
[408805543,1774281033429,-300.0,0.00014285,2]
[408805544,1774281033438,-300.0,0.00014285,2]
[408805545,1774281033447,-2500.0,0.00014285,2]
[408805546,1774281033456,-2500.0,0.00014286,2]
[408805547,1774281033467,-253.55651067,0.00014286,2]
[408805548,1774281033478,-300.0,0.00015,2]
[408805549,1774281033487,-200.0,0.00015011,2]
[408805550,1774281033496,-1500.0,0.00015338,2]
[408805551,1774281033506,-979.16666667,0.00015372,2]
[408805552,1774281033515,-160.0,0.00015372,2]
[408805553,1774281033524,-395.89,0.00015405,2]
[408805554,1774281033537,-659.4,0.00015507,2]
[408805555,1774281033547,-587.0,0.00015617,2]
[408805556,1774281033556,-2000.0,0.00015711,2]
[408805557,1774281033565,-502.0,0.00015737,3]
[408805558,1774281033575,-659.4,0.00015895,2]
[408805559,1774281033585,-56601.2810732,0.000159,2]
[408805561,1774281037806,5679.96,9.51e-05,2]
[408805562,1774281037829,2746.64,9.51e-05,2]
[408805563,1774281037979,-7904.4699577,0.00012887,2]
[408805564,1774281037989,-14807.36803504,0.000159,2]
[408805565,1774281038001,-639.31888652,0.000159,2]
[408805567,1774281038038,-796.55986639,0.000159,2]
[408805568,1774281038050,-4264.19002541,0.000159,2]
[408805569,1774281038061,-8771.8,0.000159,2]
[408805570,1774281038100,-4934.206548,0.000159,2]
[408805571,1774281038158,-4810.94195086,0.000159,2]
[408805572,1774281038169,-11700.40405899,0.000159,2]
[408805640,1774281039966,-454.35,0.000159,2]
[408805641,1774281039979,-695.34,0.000159,2]
[408805642,1774281040055,-22442.57965559,0.000159,2]
[408805643,1774281040065,-5000.0,0.000159,2]
[408805644,1774281040075,-167.91977918,0.000159,2]
[408805645,1774281040084,-367.83563646,0.000159,2]
[408805646,1774281040094,-2090.21908824,0.000159,2]
[408805647,1774281040103,-969.85848935,0.000159,2]
[408805648,1774281040113,-193.50293385,0.000159,2]
[408805649,1774281040122,-167.38131735,0.000159,2]
[408805651,1774281040131,-5726.12415634,0.00015937,2]
[408805653,1774281040142,-63664.4966867,0.00016,2]
[408805654,1774281040153,-2315.09651318,0.00016,2]
[408805655,1774281040165,-35893.8876836,0.00016,2]
[408805656,1774281040176,-475.80353924,0.00016,2]
[408805657,1774281040187,-19875.52667593,0.00016,2]
[408805658,1774281040199,-1002.70819665,0.00016,2]
[408805659,1774281040210,-10180.79349614,0.00016,2]
[408805660,1774281040221,-502.96889993,0.00016,2]
[408805671,1774281046267,-906.18200285,0.00012988,2]
[408805672,1774281046279,-93.81799715,0.00012988,2]
[408805673,1774281046288,-262.359977,0.00016,2]
[408805674,1774281046299,-78458.88254192,0.00016,2]
[408805675,1774281046326,-70689.62894311,0.00016,2]
[408805676,1774281046338,-500.0,0.00016,2]
[408805677,1774281046349,-269.7375,0.00016,2]
[408805678,1774281046385,-16253.0,0.00016,2]
[408805679,1774281046396,-347.8198552,0.00016,2]
[408805680,1774281046407,-341.04,0.00016,2]
[408805681,1774281046419,-291347.61140623,0.00016,2]
[408805682,1774281046443,-1342.2,0.00016,2]
[408805683,1774281046455,-2866.49769712,0.00016,2]
[408805684,1774281046502,-4070.7032525,0.00016,2]
[408805686,1774281046719,-5234.96213448,0.00016,2]
[408805687,1774281046770,-531.05025,0.00016,2]
[408805720,1774281694880,152.7,7.027e-05,2]
[408805721,1774281695324,152.7,9.369e-05,2]
[408805745,1774282231611,-152.7,0.00011712,2]
[408805747,1774282231620,-1488.38280428,0.00012292,2]
[408805749,1774282231632,-1011.61719572,0.00012292,2]
[408805751,1774282231642,-1200.0,0.00012648,2]
[408805752,1774282231652,-2500.0,0.00012649,2]
[408805753,1774282231662,-2500.0,0.00012649,2]
[408805754,1774282231672,-198.10050419,0.00012649,2]
[408805755,1774282231684,-1760.65,0.00012649,2]
[408805756,1774282231696,-541.24949581,0.00012649,2]
[408805757,1774282231706,-150.0,0.0001267,2]
[408805758,1774282231719,-734.29112058,0.00012773,2]
[408805759,1774282231728,-28378.68394472,0.00012787,2]
[408805760,1774282231739,-79132.56782537,0.00012787,2]
[408805761,1774282231751,-17580.72904927,0.00012787,2]
[408805762,1774282231763,-676.92004919,0.00012787,2]
[408805763,1774282231774,-343.32323318,0.00012787,2]
[408805764,1774282231793,-740.01793856,0.00012787,2]
[408805765,1774282231809,-3578.98522426,0.00012787,2]
[408805766,1774282231820,-753.50547587,0.00012787,2]
[408805768,1774282231831,-454.55387908,0.00012787,2]
[408805778,1774282237825,-460558.1064805,0.00012787,2]
[408805779,1774282237834,-462017.66847807,0.00012787,2]
[408805780,1774282237845,-36124.30977408,0.00012787,2]
[408805788,1774282240294,-34000.5,0.00012787,2]
[408805789,1774282240370,-101812.44244785,0.00012787,2]
[408805790,1774282240380,-500.0,0.00012873,2]
[408805791,1774282240389,-500.0,0.00012873,2]